bitfinex/quotes_BTCUSD_20240607
["timestamp","ask_amount","ask_price","bid_price","bid_amount"]
[1717784095411,0.3647,68665.0,68581.0,0.01520652]
[1717784095412,1.98799512,68641.0,68607.0,0.1]
[1717784095631,1.98799512,68641.0,68603.0,0.00157857]
[1717784095632,0.576,68640.0,68636.0,13.5062]
[1717784095848,0.47222824,68637.0,68636.0,13.4862]
[1717784096054,0.79822824,68637.0,68636.0,13.4862]
[1717784096258,4.42761469,68637.0,68636.0,13.47802968]
[1717784096429,4.76098414,68637.0,68636.0,9.2641]
[1717784096636,4.76098414,68637.0,68635.0,2.8468]
[1717784096637,0.565696,68636.0,68635.0,3.83953028]
[1717784096848,0.565696,68636.0,68500.0,1.125588]
[1717784096849,0.14004014,68636.0,68500.0,1.125588]
[1717784097049,3.02441678,68635.0,68634.0,6.85816211]
[1717784097250,3.91667714,68635.0,68634.0,6.62165038]
[1717784097403,5.32370954,68635.0,68634.0,4.33092187]
[1717784097619,5.32370954,68635.0,68532.0,0.43336945]
[1717784097620,0.62,68601.0,68499.0,2.56016045]
[1717784097823,0.01,68535.0,68519.0,0.1]
[1717784098030,0.01,68535.0,68499.0,2.56016045]
[1717784098031,2.5005,68534.0,68533.0,0.04171022]
[1717784098228,4.5949148,68534.0,68518.0,3.35131008]
[1717784098439,4.5949148,68534.0,68499.0,2.56016045]
[1717784098440,0.01,68519.0,68517.0,2.42744213]
[1717784098634,0.29652824,68518.0,68517.0,2.319065]
[1717784098881,1.0162,68518.0,68517.0,2.319065]
[1717784099177,0.3143,68518.0,68517.0,2.60843124]
[1717784099381,0.612047,68518.0,68517.0,2.15277313]
[1717784099594,0.0144,68518.0,68517.0,2.27930647]
[1717784099794,1.39849512,68534.0,68518.0,0.2982]
[1717784099997,0.08300163,68594.0,68518.0,0.2982]
[1717784099998,0.4,68610.0,68596.0,0.2982]
[1717784100180,0.01629885,68673.0,68609.0,0.3647]
[1717784100384,0.07222824,68687.0,68603.0,0.00569299]
[1717784100385,0.00094533,68608.0,68603.0,0.00569299]
[1717784100605,0.01629885,68655.0,68654.0,0.1]
[1717784100805,0.145592,68685.0,68639.0,0.10258715]
[1717784100806,0.01629885,68656.0,68655.0,0.09521633]
[1717784101010,0.145584,68689.0,68639.0,0.10258715]
[1717784101011,0.03321044,68661.0,68660.0,0.2981464]
[1717784101219,0.03321044,68661.0,68636.0,0.01432029]
[1717784101220,0.01629885,68707.0,68663.0,0.09521633]
[1717784101459,0.51271305,68754.0,68678.0,0.09521633]
[1717784101460,0.01629885,68679.0,68678.0,0.09521633]
[1717784101689,0.2,68725.0,68678.0,0.09521633]
[1717784101690,0.01629885,68707.0,68678.0,0.14754394]
[1717784101919,0.07422824,68752.0,68689.0,0.00611926]
[1717784101920,0.0024715,68690.0,68689.0,0.00611926]
[1717784102139,0.0145,68702.0,68654.0,8e-05]
[1717784102140,0.00185179,68682.0,68654.0,8e-05]
[1717784102361,0.0145,68702.0,68670.0,0.1]
[1717784102362,0.325,68681.0,68670.0,0.1]
[1717784102577,0.36700335,68681.0,68680.0,0.30960451]
[1717784102789,0.36700335,68681.0,68663.0,0.002]
[1717784102790,0.3275,68680.0,68663.0,0.002]
[1717784103008,0.3275,68680.0,68556.0,1.5]
[1717784103009,0.07122824,68664.0,68635.0,8e-05]
[1717784103249,0.07122824,68664.0,68612.0,8e-05]
[1717784103250,0.07222824,68638.0,68612.0,8e-05]
[1717784103482,0.07222824,68613.0,68612.0,0.20960451]
[1717784103699,0.07222824,68613.0,68611.0,4.58376109]
[1717784103910,0.43336945,68612.0,68611.0,7.17956109]
[1717784104140,0.18893169,68612.0,68611.0,7.17956109]
[1717784104377,0.22686996,68612.0,68611.0,7.17956109]
[1717784104637,0.97336996,68612.0,68611.0,7.17450873]
[1717784105001,0.861,68612.0,68611.0,7.12943519]
[1717784105219,0.46341893,68612.0,68611.0,7.08031155]
[1717784105457,0.56341893,68612.0,68611.0,6.44658453]
[1717784105663,0.971,68612.0,68611.0,5.87811305]
[1717784105869,0.318,68612.0,68611.0,5.87811305]
[1717784106072,0.508,68612.0,68611.0,6.15926693]
[1717784106284,0.03237396,68612.0,68611.0,6.15890332]
[1717784106489,0.25492266,68620.0,68611.0,5.86672385]
[1717784106702,0.19,68645.0,68643.0,0.08300748]
[1717784106937,0.43336945,68644.0,68643.0,0.08300748]
[1717784107168,0.4145,68655.0,68632.0,0.01432029]
[1717784107169,0.4,68678.0,68671.0,0.04080236]
[1717784107388,0.43336945,68704.0,68671.0,0.04080236]
[1717784107389,0.43336945,68704.0,68683.0,0.20869785]
[1717784107595,0.07222824,68732.0,68683.0,0.20869785]
[1717784107596,0.4,68715.0,68696.0,0.16789549]
[1717784107796,0.2,68723.0,68713.0,0.04080236]
[1717784108005,0.457,68727.0,68726.0,0.20869785]
[1717784108206,0.457,68727.0,68683.0,0.21118]
[1717784108207,0.02750918,68722.0,68695.0,0.01432029]
[1717784108441,0.07749,68754.0,68695.0,0.01432029]
[1717784108442,0.07749,68754.0,68744.0,0.03701567]
[1717784108649,0.07749,68754.0,68722.0,0.2111]
[1717784108650,0.19,68740.0,68733.0,0.20491116]
[1717784108855,0.07718406,68754.0,68753.0,0.03701567]
[1717784109059,0.0107927,68766.0,68755.0,0.16789549]
[1717784109292,0.17251622,68797.0,68734.0,0.1]
[1717784109293,0.17251622,68797.0,68744.0,0.03701567]
[1717784109513,0.17251622,68797.0,68741.0,0.16789549]
[1717784109514,0.39857063,68791.0,68772.0,0.2111]
[1717784109715,0.79588567,68799.0,68772.0,0.2111]
[1717784109716,0.19,68786.0,68773.0,0.1022]
[1717784109923,0.1975,68785.0,68773.0,0.1022]
[1717784110078,0.058168,68794.0,68773.0,0.10074361]
[1717784110470,0.43336945,68784.0,68777.0,0.14441893]
[1717784110683,0.457,68783.0,68782.0,0.20491116]
[1717784110990,1.41526582,68783.0,68782.0,0.06608722]
[1717784111223,0.43336945,68774.0,68711.0,0.2942354]
[1717784111458,0.43336945,68774.0,68712.0,0.43336945]
[1717784111459,0.07222824,68739.0,68712.0,0.43336945]
[1717784111691,0.07222824,68753.0,68712.0,0.43336945]
[1717784111692,0.06722824,68753.0,68712.0,0.43336945]
[1717784111923,0.06722824,68753.0,68722.0,0.01]
[1717784112167,0.06722824,68753.0,68700.0,0.1]
[1717784112168,0.07222824,68723.0,68720.0,0.01]
[1717784112403,0.07222824,68723.0,68700.0,0.3]
[1717784112404,8e-05,68749.0,68705.0,0.43336945]
[1717784112637,8e-05,68749.0,68700.0,0.2]
[1717784112638,0.1752545,68749.0,68713.0,0.07222824]
[1717784112861,0.41960412,68746.0,68725.0,0.437]
[1717784113130,0.07222824,68756.0,68726.0,0.14597251]
[1717784113368,0.43336945,68764.0,68726.0,0.144168]
[1717784113588,0.001,68753.0,68726.0,0.144168]
[1717784113823,0.07692246,68765.0,68752.0,0.14441893]
[1717784114051,0.07692246,68765.0,68753.0,0.04399936]
[1717784114052,0.43336945,68763.0,68753.0,0.04399936]
[1717784114278,0.43336945,68780.0,68763.0,0.05595796]
[1717784114509,0.43336945,68780.0,68755.0,0.05018898]
[1717784114774,0.07222824,68767.0,68755.0,0.05018898]
[1717784115000,0.30476309,68767.0,68755.0,0.05018898]
[1717784115229,0.07222824,68757.0,68755.0,0.04873441]
[1717784115463,0.654,68756.0,68755.0,0.04873441]
[1717784115719,0.1,68751.0,68703.0,0.2105]
[1717784115988,0.6685,68756.0,68701.0,0.43336945]
[1717784115989,0.07222824,68712.0,68701.0,0.43336945]
[1717784116181,0.01145545,68717.0,68704.0,0.03523907]
[1717784116392,0.1,68726.0,68705.0,0.1047]
[1717784116619,0.07222824,68731.0,68705.0,0.1047]
[1717784116620,0.07222824,68724.0,68706.0,0.03751111]
[1717784116839,0.07222824,68724.0,68705.0,0.1032444]
[1717784116840,0.07222824,68731.0,68723.0,0.14441893]
[1717784117051,0.07222824,68724.0,68707.0,0.2105]
[1717784117292,0.07222824,68731.0,68707.0,0.2105]
[1717784117293,0.03007708,68708.0,68707.0,0.2105]
[1717784117517,0.30476309,68708.0,68701.0,0.006]
[1717784117731,0.07222824,68702.0,68701.0,0.006]
[1717784117946,0.48506904,68702.0,68701.0,0.006]
[1717784118177,0.48506904,68702.0,68649.0,0.43336945]
[1717784118178,0.49652449,68702.0,68680.0,0.03171295]
[1717784118375,0.1,68694.0,68693.0,0.03557992]
[1717784118595,0.60176309,68694.0,68693.0,0.02929333]
[1717784118797,0.15703045,68693.0,68692.0,4.0008029]
[1717784119008,0.15703045,68693.0,68691.0,1.94239652]
[1717784119009,0.03600029,68693.0,68691.0,1.94239652]
[1717784119225,0.24498881,68680.0,68679.0,5.00532764]
[1717784119460,0.16834539,68692.0,68679.0,5.00532764]
[1717784119461,0.79723131,68691.0,68690.0,2.35881527]
[1717784119664,1.17323131,68691.0,68690.0,2.35881527]
[1717784119923,1.43387331,68691.0,68690.0,2.3468921]
[1717784120155,0.445579,68691.0,68690.0,2.3468921]
[1717784120378,0.445579,68691.0,68690.0,2.34098718]
[1717784120379,0.09245412,68691.0,68690.0,2.34098718]
[1717784120609,0.26117732,68691.0,68690.0,2.44098718]
[1717784120846,0.26117732,68691.0,68690.0,2.47093187]
[1717784120847,0.2595,68691.0,68690.0,2.47093187]
[1717784121088,0.109,68700.0,68690.0,2.47093187]
[1717784121089,0.0145,68705.0,68701.0,0.09964208]
[1717784121285,0.01738108,68709.0,68693.0,0.06964208]
[1717784121494,0.109,68716.0,68708.0,0.06964208]
[1717784121707,0.25576316,68715.0,68708.0,0.14441893]
[1717784121915,0.25576316,68715.0,68709.0,0.0214061]
[1717784122121,0.25576316,68715.0,68690.0,2.33594856]
[1717784122122,0.19841905,68715.0,68710.0,0.14441893]
[1717784122356,0.19841905,68715.0,68690.0,2.33594856]
[1717784122357,0.07222824,68711.0,68690.0,2.33594856]
[1717784122570,0.014,68691.0,68690.0,2.3286199]
[1717784122770,0.97541905,68691.0,68690.0,2.3286199]
[1717784122977,0.99041905,68691.0,68690.0,2.3286199]
[1717784123184,0.99041905,68691.0,68690.0,2.3267199]
[1717784123185,1.28041698,68691.0,68690.0,2.3267199]
[1717784123405,1.28041698,68691.0,68690.0,2.32310422]
[1717784123406,1.36044826,68691.0,68690.0,2.32310422]
[1717784123848,1.43391325,68691.0,68690.0,2.16002109]
[1717784124073,0.11669209,68690.0,68689.0,2.18749931]
[1717784124299,0.47412535,68690.0,68689.0,4.55199931]
[1717784124547,0.51835404,68690.0,68689.0,4.54454553]
[1717784124796,0.93375672,68690.0,68689.0,4.52960343]
[1717784125032,0.73359302,68690.0,68689.0,4.52960343]
[1717784125247,0.34309302,68690.0,68689.0,4.52960343]
[1717784125479,0.34797152,68690.0,68689.0,4.52960343]
[1717784125722,0.34887155,68690.0,68689.0,4.52705603]
[1717784125938,0.34887155,68690.0,68689.0,4.52228027]
[1717784125939,0.38200833,68690.0,68689.0,4.52228027]
[1717784126197,0.20380966,68690.0,68689.0,4.52228027]
[1717784126415,0.20189722,68690.0,68689.0,4.59253897]
[1717784126659,0.014,68690.0,68689.0,4.65565982]
[1717784126916,0.05181341,68702.0,68689.0,4.80007875]
[1717784127149,0.01,68730.0,68709.0,0.05215414]
[1717784127395,0.05171759,68707.0,68706.0,0.03810526]
[1717784127638,0.145518,68720.0,68706.0,0.03810526]
[1717784127639,0.02280825,68723.0,68706.0,0.1038]
[1717784127857,0.05090659,68719.0,68712.0,0.07222824]
[1717784128089,0.05090659,68719.0,68712.0,0.0691807]
[1717784128335,0.019526,68763.0,68712.0,0.0691807]
[1717784128336,0.1518,68750.0,68715.0,0.01]
[1717784128561,0.1518,68750.0,68732.0,0.07222824]
[1717784128562,0.43336945,68736.0,68732.0,0.07222824]
[1717784128799,0.009526,68763.0,68746.0,0.07222824]
[1717784129274,0.009526,68763.0,68747.0,0.2105]
[1717784129275,0.43336945,68761.0,68747.0,0.2105]
[1717784129513,0.009526,68763.0,68752.0,0.1009]
[1717784129735,0.009526,68763.0,68760.0,0.21664717]
[1717784129990,0.009526,68763.0,68762.0,0.14441893]
[1717784130225,0.009526,68763.0,68752.0,0.1009]
[1717784130439,0.338,68776.0,68753.0,0.14441893]
[1717784130440,0.1518,68775.0,68753.0,0.14441893]
[1717784130656,0.1518,68775.0,68753.0,0.13814087]
[1717784131119,0.001,68763.0,68760.0,0.01]
[1717784131375,0.1758275,68763.0,68760.0,0.01]
[1717784131597,0.338,68788.0,68762.0,0.21664717]
[1717784131820,0.43336945,68799.0,68785.0,0.1974]
[1717784131821,0.57872045,68799.0,68785.0,0.1974]
[1717784132050,0.57872045,68799.0,68760.0,0.01]
[1717784132051,0.57872145,68799.0,68782.0,0.1974]
[1717784132288,0.22954141,68793.0,68773.0,0.1974]
[1717784132751,0.38134141,68793.0,68774.0,0.14441893]
[1717784132950,0.001,68775.0,68774.0,0.14296468]
[1717784133162,0.22954141,68793.0,68774.0,0.14296468]
[1717784133578,0.1518,68792.0,68782.0,0.001]
[1717784133801,0.1518,68792.0,68774.0,0.14296468]
[1717784134015,0.22954141,68793.0,68783.0,0.13938005]
[1717784134225,0.1749301,68792.0,68783.0,0.13938005]
[1717784134434,0.01,68788.0,68783.0,0.13938005]
[1717784134717,0.1749301,68792.0,68783.0,0.13938005]
[1717784134939,0.1749301,68792.0,68787.0,0.14441893]
[1717784137736,1.22018107,68788.0,68777.0,0.14441893]
[1717784137938,0.058159,68799.0,68777.0,0.14441893]
[1717784137939,0.04551274,68799.0,68787.0,0.14441893]
[1717784138136,0.04551274,68799.0,68786.0,0.07222824]
[1717784138137,0.00625433,68825.0,68798.0,0.14441893]
[1717784138359,0.43336945,68833.0,68798.0,0.14441893]
[1717784138360,0.43336945,68833.0,68817.0,0.07222824]
[1717784138567,0.43336945,68833.0,68809.0,0.21755524]
[1717784138568,0.045512,68820.0,68809.0,0.07222824]
[1717784138773,0.43336945,68833.0,68809.0,0.07222824]
[1717784138774,0.009526,68843.0,68809.0,0.07222824]
[1717784139022,0.00891363,68843.0,68825.0,0.07222824]
[1717784139224,0.00891363,68843.0,68832.0,0.07222824]
[1717784139431,0.009526,68862.0,68842.0,0.01]
[1717784139664,0.43336945,68887.0,68842.0,0.01]
[1717784139665,0.43336945,68887.0,68859.0,0.07222824]
[1717784139893,0.40559769,68922.0,68878.0,0.145182]
[1717784140121,0.40559769,68922.0,68893.0,0.01]
[1717784140336,0.01,68936.0,68898.0,0.2558]
[1717784140574,0.7726782,68938.0,68898.0,0.2558]
[1717784140821,0.10976734,68938.0,68912.0,0.14441893]
[1717784141039,0.0190242,68955.0,68912.0,0.14441893]
[1717784141040,0.01,68936.0,68912.0,0.14441893]
[1717784141267,0.01,68936.0,68934.0,0.14441893]
[1717784141550,0.01,68945.0,68934.0,0.14296821]
[1717784141769,0.058052,68935.0,68934.0,0.15726503]
[1717784141989,0.0190242,68955.0,68913.0,0.04443077]
[1717784141990,0.0190242,68955.0,68913.0,0.10584843]
[1717784142220,0.019024,68944.0,68924.0,0.14441893]
[1717784142445,0.0190242,68955.0,68927.0,0.07222824]
[1717784142917,0.009504,68958.0,68934.0,0.07222824]
[1717784143132,0.43336945,68991.0,68934.0,0.07222824]
[1717784143133,0.00949301,68982.0,68957.0,0.14441893]
[1717784143365,0.058029,68971.0,68958.0,0.01712403]
[1717784143591,0.00949301,68982.0,68957.0,0.14441893]
[1717784143818,0.22954141,68975.0,68957.0,0.14441893]
[1717784144070,0.058029,68972.0,68935.0,0.25890005]
[1717784144296,0.058029,68972.0,68958.0,0.14441893]
[1717784144514,0.00949301,68982.0,68964.0,0.07222824]
[1717784144730,0.00949301,68982.0,68966.0,0.144997]
[1717784144961,0.00949301,68982.0,68967.0,0.02272252]
[1717784145219,0.00949301,68982.0,68959.0,0.145012]
[1717784145469,0.00949301,68982.0,68976.0,0.14441893]
[1717784145692,0.000946,68992.0,68977.0,0.14441893]
[1717784145912,0.000946,68992.0,68981.0,0.14441893]
[1717784146374,0.000946,68992.0,68985.0,0.14441893]
[1717784146590,0.07222824,68998.0,68985.0,0.14441893]
[1717784146774,0.07222824,68991.0,68985.0,0.14441893]
[1717784147323,0.07222824,68991.0,68955.0,8e-05]
[1717784147324,0.77252768,68990.0,68955.0,8e-05]
[1717784147580,0.77252768,68990.0,68948.0,0.43336945]
[1717784147581,0.07222824,68976.0,68972.0,0.43336945]
[1717784147794,0.07222824,68998.0,68958.0,0.0967]
[1717784148023,0.07222824,68973.0,68958.0,0.0967]
[1717784148238,0.07222824,68981.0,68959.0,0.43336945]
[1717784148461,0.07222824,68990.0,68960.0,0.06855694]
[1717784148695,0.07222824,68990.0,68958.0,0.0967]
[1717784148696,0.07222824,68968.0,68958.0,0.0967]
[1717784148928,0.07222824,68968.0,68941.0,0.0973]
[1717784148929,0.07222824,68960.0,68941.0,0.0973]
[1717784149147,0.41153699,68976.0,68941.0,0.0973]
[1717784149411,0.07222824,68963.0,68941.0,0.0973]
[1717784149644,0.07222824,68961.0,68941.0,0.0973]
[1717784149905,0.43336945,68975.0,68941.0,0.0973]
[1717784149906,0.33930875,68975.0,68941.0,0.0973]
[1717784150197,0.07222824,68983.0,68947.0,0.07222824]
[1717784150424,0.43336945,68980.0,68967.0,0.14441893]
[1717784150659,0.43336945,68980.0,68942.0,0.17755182]
[1717784150660,0.07222824,68975.0,68971.0,0.14441893]
[1717784150878,0.07011503,68982.0,68971.0,0.14441893]
[1717784151100,0.07222824,68974.0,68971.0,0.14441893]
[1717784151348,0.06981035,68982.0,68971.0,0.14441893]
[1717784151572,0.07222824,68974.0,68971.0,0.14441893]
[1717784151815,0.07222824,68974.0,68943.0,0.43336945]
[1717784152027,0.07150152,68974.0,68955.0,0.14441893]
[1717784152267,0.07222824,68967.0,68940.0,0.07222824]
[1717784152494,0.33930875,68976.0,68952.0,0.145027]
[1717784152721,0.33930875,68976.0,68947.0,0.1555]
[1717784152722,0.01,68973.0,68947.0,0.15147091]
[1717784152942,0.33930875,68976.0,68947.0,0.15147091]
[1717784153158,6.818e-05,68972.0,68947.0,0.15147091]
[1717784153389,6.818e-05,68972.0,68967.0,0.14441893]
[1717784153611,0.144954,68988.0,68971.0,0.14441893]
[1717784153838,0.144954,68988.0,68973.0,0.14441893]
[1717784154056,0.058004,68999.0,68976.0,0.14441893]
[1717784154344,0.058004,68999.0,68976.0,0.1432282]
[1717784154528,0.34930875,69002.0,68985.0,0.21342897]
[1717784154770,0.43336945,69040.0,68985.0,0.21342897]
[1717784154771,0.1946,69027.0,68985.0,0.21342897]
[1717784155018,0.05678852,69011.0,68985.0,0.21342897]
[1717784155307,0.15455301,69023.0,68987.0,0.02]
[1717784155512,0.00967301,69023.0,68991.0,0.02]
[1717784155739,0.00967301,69023.0,69003.0,0.02]
[1717784155965,0.15455201,69023.0,69003.0,0.02]
[1717784156194,0.00967301,69023.0,69003.0,0.02]
[1717784156418,0.00967301,69023.0,69006.0,0.02]
[1717784156665,0.00967301,69023.0,69004.0,0.02]
[1717784156918,0.00967301,69023.0,68991.0,0.1515]
[1717784156919,0.144841,69041.0,69022.0,0.14441893]
[1717784157163,0.43336945,69039.0,69029.0,0.14441893]
[1717784157371,0.03188194,69048.0,69007.0,0.16792824]
[1717784157372,0.43336945,69036.0,69007.0,0.16792824]
[1717784157604,0.10976734,69040.0,69013.0,0.43336945]
[1717784157854,0.10976734,69040.0,69008.0,0.07222824]
[1717784158064,0.10976734,69040.0,69008.0,0.14441893]
[1717784158065,0.07222824,69038.0,69008.0,0.14441893]
[1717784158283,0.07222824,69023.0,68994.0,0.43336945]
[1717784158506,0.10976734,69022.0,68994.0,0.43336945]
[1717784158732,0.10976734,69022.0,68980.0,0.19278]
[1717784158733,0.10976734,69022.0,68995.0,0.21664717]
[1717784158959,0.144902,69012.0,68995.0,0.21664717]
[1717784159205,0.3,69031.0,69002.0,0.07222824]
[1717784159406,0.1,69030.0,69009.0,0.21664717]
[1717784159630,0.1,69030.0,69002.0,0.07222824]
[1717784159631,0.43336945,69036.0,69012.0,0.14441893]
[1717784159846,0.144866,69030.0,69013.0,0.07222824]
[1717784160061,0.057991,69037.0,69021.0,0.07222824]
[1717784160331,0.05639418,69037.0,69028.0,0.21664717]
[1717784160548,0.009427,69051.0,69034.0,0.14441893]
[1717784160777,0.009427,69051.0,69040.0,0.14441893]
[1717784161011,0.009427,69051.0,69043.0,0.14441893]
[1717784161443,0.202792,69048.0,69023.0,0.02]
[1717784161659,0.202792,69048.0,69019.0,0.2033]
[1717784161660,0.057965,69048.0,69027.0,0.07222824]
[1717784161983,0.009427,69051.0,69038.0,0.14441893]
[1717784162168,0.009427,69051.0,69020.0,0.10312824]
[1717784162169,0.009427,69051.0,69039.0,0.14441893]
[1717784162427,0.009427,69051.0,69048.0,0.07222824]
[1717784162687,0.2,69068.0,69048.0,0.07222824]
[1717784162907,0.1029,69104.0,69049.0,0.33876914]
[1717784163121,0.10946205,69102.0,69049.0,0.33876914]
[1717784163344,0.10946205,69102.0,69054.0,0.02]
[1717784163345,0.144726,69096.0,69054.0,0.02]
[1717784163572,0.10946205,69102.0,69076.0,0.14441893]
[1717784163573,0.16739205,69102.0,69076.0,0.14441893]
[1717784163806,0.43336945,69081.0,69076.0,0.14441893]
[1717784164060,0.16739205,69102.0,69076.0,0.14441893]
[1717784164061,0.1518,69102.0,69076.0,0.14441893]
[1717784164266,0.1518,69102.0,69057.0,8e-05]
[1717784164499,0.144735,69092.0,69056.0,0.07222824]
[1717784164726,0.209731,69095.0,69061.0,0.02]
[1717784164947,0.057931,69095.0,69063.0,0.07222824]
[1717784165168,0.257931,69095.0,69074.0,0.14441893]
[1717784165389,0.144733,69093.0,69076.0,0.14441893]
[1717784165618,0.057928,69099.0,69076.0,0.14441893]
[1717784165857,0.057928,69099.0,69029.0,0.5646]
[1717784165858,0.07222824,69096.0,69056.0,8e-05]
[1717784166119,0.07222824,69096.0,69055.0,0.07222824]
[1717784166120,0.27222824,69089.0,69055.0,0.07222824]
[1717784166331,0.07222824,69096.0,69055.0,0.07222824]
[1717784166551,0.057928,69099.0,69063.0,0.02]
[1717784166805,0.057928,69099.0,69073.0,0.14441893]
[1717784167022,0.057928,69099.0,69075.0,0.14441893]
[1717784167280,0.057928,69099.0,69076.0,0.14441893]
[1717784167498,0.144717,69101.0,69076.0,0.14441893]
[1717784167721,0.2547,69104.0,69076.0,0.11687893]
[1717784167952,0.07222824,69098.0,69076.0,0.11687893]
[1717784168163,0.1518,69090.0,69056.0,0.43336945]
[1717784168439,0.07222824,69091.0,69057.0,0.14441893]
[1717784168440,0.1518,69088.0,69057.0,0.14441893]
[1717784168648,0.144752,69084.0,69067.0,0.02]
[1717784168874,0.144741,69089.0,69060.0,0.14441893]
[1717784169094,0.144741,69089.0,69040.0,0.144841]
[1717784169095,0.07222824,69068.0,69029.0,0.43336945]
[1717784169333,0.07222824,69060.0,69053.0,0.43336945]
[1717784169554,0.8643939,69067.0,69029.0,0.43336945]
[1717784169555,0.24992049,69067.0,69029.0,0.43344945]
[1717784169734,0.07222824,69050.0,69030.0,0.43336945]
[1717784170001,0.07222824,69050.0,69020.0,0.21068]
[1717784170002,0.1015,69048.0,69020.0,0.2]
[1717784170274,0.1015,69048.0,69024.0,0.43336945]
[1717784170275,0.144845,69040.0,69024.0,0.43336945]
[1717784170484,0.144845,69040.0,69005.0,0.201]
[1717784170485,0.144847,69039.0,69009.0,8e-05]
[1717784170673,0.14484,69042.0,69009.0,0.2]
[1717784170970,0.21708824,69032.0,69013.0,0.2]
[1717784171241,0.326,69045.0,69013.0,0.2]
[1717784171516,0.1518,69043.0,69018.0,0.43336945]
[1717784172031,0.1740162,69051.0,69019.0,0.2059]
[1717784172036,0.1740028,69054.0,69019.0,0.27413884]
[1717784172369,0.1740028,69054.0,69014.0,0.14441893]
[1717784172370,0.144853,69036.0,69014.0,0.14441893]
[1717784172373,0.144853,69036.0,69012.0,8e-05]
[1717784172374,0.3008212,69053.0,69020.0,0.43336945]
[1717784172560,0.3008212,69053.0,69025.0,0.2]
[1717784172765,0.2075,69059.0,69032.0,0.14441893]
[1717784173136,0.07222824,69056.0,69034.0,0.14441893]
[1717784173343,0.3007747,69055.0,69018.0,8e-05]
[1717784173550,0.3007747,69055.0,69005.0,0.43336945]
[1717784173551,0.144827,69048.0,69029.0,0.43336945]
[1717784173735,0.2075,69059.0,69033.0,0.07222824]
[1717784173870,0.2075,69059.0,69035.0,0.14441893]
[1717784174067,0.2075,69059.0,69036.0,0.43336945]
[1717784174327,0.248494,69064.0,69044.0,0.07222824]
[1717784174328,0.1037,69064.0,69044.0,0.07222824]
[1717784174552,0.35578,69071.0,69045.0,0.14441893]
[1717784174750,0.144784,69069.0,69046.0,0.08801716]
[1717784174998,0.1013,69079.0,69046.0,0.08801716]
[1717784174999,0.1013,69079.0,69054.0,0.21664717]
[1717784175110,0.144742,69089.0,69063.0,0.21664717]
[1717784175316,0.30068146,69087.0,69064.0,0.14441893]
[1717784175521,0.14474,69090.0,69067.0,0.14441893]
[1717784175725,0.30063846,69087.0,69072.0,0.14441893]
[1717784175966,0.30063846,69087.0,69074.0,0.2]
[1717784176156,0.30063846,69087.0,69075.0,0.14441893]
[1717784176371,0.144724,69097.0,69075.0,0.14441893]
[1717784176571,0.2075,69108.0,69062.0,0.07222824]
[1717784176572,0.3593,69108.0,69076.0,0.14441893]
[1717784176909,0.14474,69090.0,69064.0,0.2]
[1717784177127,0.30063148,69089.0,69072.0,0.43336945]
[1717784177377,0.30063148,69089.0,69073.0,0.14441893]
[1717784177576,0.30063148,69089.0,69046.0,0.27222824]
[1717784177577,0.1518,69087.0,69046.0,0.27222824]
[1717784177781,0.2049,69072.0,69057.0,0.43336945]
[1717784178011,0.144786,69067.0,69057.0,0.43336945]
[1717784178219,0.144786,69067.0,69049.0,0.2]
[1717784178220,0.30063148,69066.0,69049.0,0.2]
[1717784178434,0.144793,69064.0,69041.0,0.2]
[1717784178633,0.2049,69072.0,69040.0,0.2]
[1717784178786,0.144801,69061.0,69041.0,0.14441893]
[1717784178997,0.1518,69063.0,69041.0,0.14441893]
[1717784179195,0.144814,69054.0,69041.0,0.14441893]
[1717784179402,0.14441893,69071.0,69041.0,0.14441893]
[1717784179726,0.5415,69078.0,69052.0,0.43336945]
[1717784179727,0.144803,69060.0,69052.0,0.43336945]
[1717784179900,0.14478,69071.0,69059.0,0.14441893]
[1717784180089,0.16167733,69078.0,69059.0,0.14441893]
[1717784180090,0.30070828,69070.0,69059.0,0.14441893]
[1717784180429,0.3255,69081.0,69069.0,0.07222824]
[1717784180628,0.144767,69077.0,69065.0,0.2064]
[1717784180832,0.00940501,69111.0,69065.0,0.2064]
[1717784180833,0.144753,69084.0,69065.0,0.2064]
[1717784181033,0.00940501,69111.0,69074.0,0.07222824]
[1717784181280,0.144741,69089.0,69066.0,0.07222824]
[1717784181635,0.144741,69089.0,69057.0,0.07222824]
[1717784181636,0.3005964,69088.0,69069.0,0.57778838]
[1717784181858,1.138,69106.0,69071.0,0.14441893]
[1717784182077,0.144734,69092.0,69071.0,0.14441893]
[1717784182338,0.144734,69092.0,69067.0,0.07222824]
[1717784182339,0.30058897,69091.0,69079.0,0.14441893]
[1717784182546,0.144734,69092.0,69079.0,0.14441893]
[1717784182753,1.3499,69106.0,69087.0,0.2]
[1717784182886,0.66964255,69105.0,69075.0,0.2]
[1717784183099,0.66964255,69105.0,69076.0,0.57778838]
[1717784183100,0.1524,69103.0,69076.0,0.57778838]
[1717784183311,0.07222824,69097.0,69076.0,0.14441893]
[1717784183513,0.45299538,69096.0,69076.0,0.14441893]
[1717784183894,0.45299538,69096.0,69051.0,0.57818945]
[1717784183895,0.144783,69069.0,69056.0,0.2]
[1717784184085,0.3006716,69068.0,69051.0,0.43336945]
[1717784184368,0.3006716,69067.0,69051.0,0.43336945]
[1717784184515,0.144796,69063.0,69049.0,0.2]
[1717784184721,0.144803,69060.0,69049.0,0.2]
[1717784184952,0.144803,69060.0,69048.0,0.02]
[1717784184953,0.28802873,69059.0,69028.0,8e-05]
[1717784185151,0.28802873,69058.0,69037.0,0.14441893]
[1717784185380,0.07222824,69055.0,69023.0,0.2]
[1717784185594,0.1739923,69058.0,69028.0,0.43336945]
[1717784185830,0.1739923,69058.0,69017.0,0.1982]
[1717784185831,0.289625,69055.0,69019.0,0.21432029]
[1717784186059,0.144857,69034.0,69026.0,0.43336945]
[1717784186224,0.144857,69034.0,69027.0,0.34441893]
[1717784186564,0.144866,69029.0,69027.0,0.14441893]
[1717784186715,0.14457471,69023.0,69021.0,0.2]
[1717784186921,0.162,69038.0,69000.0,0.0006773]
[1717784186922,0.1524,69037.0,69014.0,0.2]
[1717784187272,0.144909,69009.0,69000.0,0.0006773]
[1717784187514,0.144911,69008.0,69006.0,0.43336945]
[1717784187721,0.144911,69008.0,69007.0,0.14441893]
[1717784187926,0.289716,69033.0,69000.0,0.0006773]
[1717784187927,0.144917,69005.0,69000.0,0.0006773]